bitfinex-derivatives/quotes_ETHF0:USTF0_20260306
["timestamp","ask_amount","ask_price","bid_price","bid_amount"]
[1772775343337,0.57450575,2064.5,2063.5,0.59543777]
[1772775343538,0.00451413,2064.5,2063.5,0.59543777]
[1772775344139,0.57450575,2064.5,2063.5,0.59543777]
[1772775345037,0.56999162,2065.1,2063.6,0.24228]
[1772775345243,0.56999162,2065.1,2063.7,0.59543777]
[1772775345641,0.56999162,2065.1,2063.9,0.59543777]
[1772775345840,0.56999162,2065.1,2064.1,0.59543777]
[1772775346036,0.57343368,2065.1,2064.1,0.59543777]
[1772775346643,0.57343368,2065.1,2063.9,0.59543777]
[1772775350048,0.57343368,2065.1,2064.1,0.59543777]
[1772775351238,0.00344206,2065.1,2064.1,0.59543777]
[1772775352039,0.00344206,2065.1,2064.3,0.59543777]
[1772775352242,0.56999162,2065.5,2064.5,0.59543777]
[1772775352440,0.56999162,2065.5,2064.7,0.59543777]
[1772775352843,0.56999162,2066.2,2064.7,0.59543777]
[1772775353346,0.57506087,2066.2,2064.7,0.59543777]
[1772775358546,0.57506087,2066.2,2064.9,0.59543777]
[1772775359053,0.57506087,2066.2,2065.1,0.59543777]
[1772775360654,0.57506087,2066.2,2065.3,0.5737548]
[1772775365257,0.57506087,2066.2,2065.1,7.5647548]
[1772775365454,0.57506087,2066.2,2065.1,6.991]
[1772775366053,0.57506087,2066.2,2064.9,0.5737548]
[1772775366556,0.57506087,2066.2,2065.0,0.5737548]
[1772775370560,0.55257355,2066.1,2065.0,7.6207548]
[1772775370857,0.55257355,2065.9,2065.0,7.047]
[1772775371062,0.55257355,2065.9,2064.5,0.5737548]
[1772775371759,0.55257355,2065.9,2064.6,0.5737548]
[1772775373964,0.55257355,2065.9,2064.8,0.5737548]
[1772775376663,0.55257355,2065.3,2064.4,0.5737548]
[1772775376868,0.55257355,2065.3,2063.9,0.5737548]
[1772775377166,0.55257355,2065.1,2063.9,0.5737548]
[1772775377860,0.55257355,2065.1,2063.9,0.57861858]
[1772775378056,0.55257355,2064.7,2063.9,0.00486378]
[1772775378256,0.55808661,2064.7,2063.9,0.00486378]
[1772775380158,0.55808661,2064.7,2063.9,0.57861858]
[1772775381360,0.00551306,2064.7,2063.9,0.57861858]
[1772775381560,0.55808661,2064.7,2063.9,0.57861858]
[1772775381760,0.00551306,2064.7,2063.9,0.57861858]
[1772775382363,0.55257355,2064.6,2063.9,0.57861858]
[1772775382765,0.24208,2065.4,2063.9,0.57861858]
[1772775382964,0.55257355,2065.2,2063.9,0.57861858]
[1772775383464,3.97832771,2065.8,2064.1,0.5737548]
[1772775383465,0.55257355,2065.8,2064.1,0.5737548]
[1772775383665,0.55257355,2065.6,2064.3,0.5737548]
[1772775383867,0.55257355,2065.6,2064.5,0.5737548]
[1772775384067,0.55859105,2065.6,2064.5,0.5737548]
[1772775386668,0.55859105,2065.6,2064.4,0.5737548]
[1772775390667,0.54131804,2066.0,2064.7,0.55873912]
[1772775391669,0.54589586,2066.0,2064.7,0.55873912]
[1772775391870,0.00457782,2066.0,2065.1,0.55873912]
[1772775392067,0.00457782,2066.0,2065.3,0.55873912]
[1772775392462,0.54131804,2066.6,2065.3,0.55873912]
[1772775393466,0.54641858,2066.6,2065.3,0.55873912]
[1772775394466,0.54641858,2066.6,2065.5,0.55873912]
[1772775394770,0.54641858,2066.6,2065.5,0.56288836]
[1772775396967,0.54641858,2066.6,2065.6,0.55873912]
[1772775403772,0.00510054,2066.6,2065.6,0.55873912]
[1772775404678,0.54131804,2067.1,2065.9,0.55873912]
[1772775405580,0.54529606,2067.1,2065.9,0.55873912]
[1772775405982,0.54529606,2067.1,2066.1,0.55873912]
[1772775411675,0.54529606,2067.1,2065.8,2.25182137]
[1772775411879,0.54529606,2067.1,2066.0,0.55873912]
[1772775412174,0.54529606,2067.1,2066.0,7.033]
[1772775412684,0.54529606,2067.1,2066.1,0.55873912]
[1772775413578,0.54131804,2066.9,2066.0,7.59173912]
[1772775413882,0.54131804,2066.9,2066.0,7.033]
[1772775417784,0.54131804,2066.9,2065.6,7.58173912]
[1772775418284,0.54131804,2066.9,2065.7,0.55873912]
[1772775419285,0.54131804,2066.7,2065.7,0.55873912]
[1772775423790,0.55761907,2066.9,2065.7,0.55873912]
[1772775424590,0.55761907,2066.7,2065.7,0.55873912]
[1772775427490,0.55761907,2066.9,2065.7,0.55873912]
[1772775428294,0.56159709,2067.1,2065.8,0.57875125]
[1772775428489,0.56159709,2067.1,2065.9,0.57875125]
[1772775429294,0.56159709,2067.1,2066.0,0.57875125]
[1772775438303,0.00397802,2067.1,2066.0,0.57875125]
[1772775438807,0.00397802,2067.1,2066.2,0.57875125]
[1772775439007,0.00397802,2067.1,2066.4,0.57875125]
[1772775439707,0.56159709,2067.1,2066.4,0.57875125]
[1772775443208,0.56159709,2067.1,2066.3,6.987]
[1772775443405,0.55761907,2066.9,2066.0,0.57875125]
[1772775443812,0.55761907,2066.9,2065.9,7.56775125]
[1772775444907,0.55761907,2066.9,2066.0,0.57875125]
[1772775448516,0.55761907,2066.9,2065.9,7.56775125]
[1772775449007,0.55761907,2066.9,2066.0,0.57875125]
[1772775452513,0.00397802,2067.1,2066.2,0.57771922]
[1772775452713,0.56110631,2067.1,2066.2,0.57771922]
[1772775458422,0.00397802,2067.1,2066.2,0.57771922]
[1772775460222,0.00397802,2067.1,2066.3,0.57771922]
[1772775462123,0.56110631,2067.1,2066.3,0.57771922]
[1772775463124,0.56110631,2067.1,2066.1,0.57771922]
[1772775463423,0.56110631,2067.1,2066.3,0.57771922]
[1772775468728,0.00397802,2067.1,2066.3,0.57771922]
[1772775470132,0.55712829,2067.3,2066.5,0.57771922]
[1772775470334,0.55712829,2067.7,2066.5,0.57771922]
[1772775471230,0.56225218,2067.7,2066.5,0.57771922]
[1772775478538,0.56225218,2067.7,2066.2,17.04619488]
[1772775478539,0.55712829,2067.3,2066.3,0.57771922]
[1772775478743,0.55712829,2067.1,2066.3,0.57771922]
[1772775481945,0.57377158,2067.3,2066.3,0.57771922]
[1772775482850,0.57377158,2067.6,2066.3,0.57771922]
[1772775483046,0.00512389,2067.7,2066.2,0.24197]
[1772775483047,0.00512389,2067.7,2066.7,0.54563635]
[1772775483252,0.57377158,2067.8,2066.9,0.54563635]
[1772775484142,0.57751884,2067.8,2066.9,0.54563635]
[1772775485454,0.57751884,2067.8,2066.8,6.96]
[1772775486150,0.57751884,2067.8,2066.8,7.50563635]
[1772775486351,0.57751884,2067.8,2066.9,0.54563635]
[1772775488651,0.57751884,2067.8,2066.8,6.96]
[1772775489044,0.57751884,2067.8,2066.9,0.54563635]
[1772775490450,0.57751884,2067.8,2066.8,6.96]
[1772775490646,0.57751884,2067.8,2066.9,0.54563635]
[1772775492559,0.57751884,2067.8,2066.9,2.13395488]
[1772775493962,0.57751884,2067.8,2067.0,0.54563635]
[1772775494264,0.57377158,2067.6,2067.0,0.00442376]
[1772775494761,0.57377158,2067.6,2067.0,0.55006011]
[1772775496765,0.57377158,2067.6,2067.0,0.00442376]
[1772775497869,0.57377158,2067.6,2067.0,0.55006011]
[1772775499669,0.57377158,2067.6,2067.0,0.00442376]
[1772775500774,0.57377158,2067.6,2067.0,0.55006011]
[1772775505169,0.57377158,2067.6,2066.8,6.96]
[1772775505365,0.57377158,2067.4,2066.5,0.54563635]
[1772775505971,0.57377158,2067.0,2066.2,0.54563635]
[1772775506370,0.57377158,2067.0,2066.2,0.55192755]
[1772775509972,0.57377158,2067.0,2066.2,0.0062912]
[1772775511570,0.57377158,2067.0,2066.2,0.58871315]
[1772775526886,0.57377158,2067.0,2066.2,0.0062912]
[1772775527091,0.54273123,2066.8,2066.2,0.0062912]
[1772775527590,0.54273123,2066.8,2065.9,0.58242195]
[1772775528588,0.54273123,2066.8,2065.9,0.58749801]
[1772775530693,0.54273123,2066.8,2066.3,0.58242195]
[1772775531591,0.54273123,2066.8,2066.1,0.58242195]
[1772775532294,0.54273123,2066.8,2066.3,0.58242195]
[1772775537602,0.54273123,2066.8,2066.0,0.58242195]
[1772775543498,0.57201621,2066.6,2065.9,0.00507606]
[1772775543703,0.57201621,2066.4,2065.4,7.35709431]
[1772775544002,0.57201621,2066.2,2065.4,7.35709431]
[1772775544405,0.57201621,2066.2,2065.5,0.54809431]
[1772775544696,0.57778895,2066.2,2065.5,0.00517128]
[1772775544899,0.57201621,2066.0,2065.1,0.54809431]
[1772775546000,0.57201621,2066.0,2065.1,0.55315547]
[1772775554205,0.57201621,2065.6,2064.6,0.54809431]
[1772775555009,0.57201621,2065.4,2064.4,0.54809431]
[1772775555209,1.58942628,2064.9,2064.1,0.54809431]
[1772775555510,1.58942628,2064.9,2063.7,0.54809431]
[1772775555511,0.57201621,2064.8,2063.7,0.54809431]
[1772775555808,0.57201621,2064.8,2063.6,6.8]
[1772775555809,0.57201621,2064.5,2063.5,0.54809431]
[1772775556305,0.57689094,2064.5,2063.5,0.55221081]
[1772775556706,0.57689094,2064.5,2063.5,0.0041165]
[1772775557103,0.57689094,2064.5,2063.5,0.55221081]
[1772775557606,0.57689094,2064.5,2063.5,0.0041165]
[1772775557906,0.57689094,2064.5,2063.5,0.55221081]
[1772775559316,0.57689094,2064.5,2063.5,0.0041165]
[1772775559512,0.57201621,2064.3,2063.1,0.54809431]
[1772775560615,0.57201621,2064.3,2063.1,0.55229805]
[1772775561112,0.57201621,2064.2,2063.1,0.55229805]
[1772775562714,0.57201621,2064.0,2063.1,0.00420374]
[1772775562917,0.57201621,2063.8,2063.1,0.00420374]
[1772775563115,0.57201621,2063.8,2062.7,0.54809431]
[1772775564219,0.57201621,2063.8,2062.7,0.55383361]
[1772775574422,0.59089997,2063.6,2062.7,0.55383361]
[1772775575119,0.59089997,2063.2,2062.3,0.58470183]
[1772775575332,0.59089997,2063.0,2062.1,0.58470183]
[1772775575625,0.59089997,2063.0,2062.1,0.56677643]
[1772775576125,0.59089997,2062.8,2062.1,0.57083583]
[1772775577425,0.00379451,2063.0,2062.1,0.58876123]
[1772775577426,0.59089997,2062.6,2062.1,0.58876123]
[1772775577727,0.59089997,2062.6,2061.7,0.58470183]
[1772775578833,0.59089997,2062.6,2061.7,0.58866488]
[1772775580432,0.59089997,2062.8,2061.7,0.58866488]
[1772775581532,0.59089997,2062.7,2061.7,0.58866488]
[1772775582031,0.24237,2062.8,2061.7,0.58866488]
[1772775582032,0.59089997,2062.5,2061.8,0.58470183]
[1772775582235,0.59089997,2062.1,2061.4,0.58470183]
[1772775582431,0.24247,2062.0,2061.2,0.79450807]
[1772775582637,3.98413007,2062.5,2060.8,0.58470183]
[1772775582935,0.59089997,2062.1,2060.8,0.58470183]
[1772775583130,0.59089997,2062.5,2061.0,0.58470183]
[1772775583332,0.59089997,2062.8,2061.4,0.58470183]
[1772775585730,0.59089997,2062.8,2061.5,0.58470183]
[1772775587340,0.59089997,2062.8,2061.6,0.58470183]
[1772775588636,0.59469448,2063.0,2061.6,0.58470183]
[1772775590544,0.59089997,2062.8,2061.6,0.58470183]
[1772775590747,0.59089997,2062.4,2061.0,6.61128424]
[1772775590945,0.59089997,2062.4,2061.1,0.58470183]
[1772775594345,0.59089997,2062.8,2061.3,0.58470183]
[1772775597039,5.7345055,2062.7,2061.3,0.58470183]
[1772775597245,0.59089997,2062.6,2061.3,0.58470183]
[1772775599151,0.59089997,2062.9,2061.6,0.58470183]
[1772775599644,0.59089997,2062.7,2061.6,0.58470183]
[1772775600844,0.2424,2062.6,2061.6,0.58470183]
[1772775601146,0.54182133,2062.5,2061.6,0.58470183]
[1772775602249,0.54182133,2062.3,2061.6,0.58470183]
[1772775602653,0.54182133,2062.8,2061.6,0.58470183]
[1772775602948,0.54182133,2062.8,2061.8,0.5929332]
[1772775604149,0.54561584,2063.0,2061.8,0.5929332]
[1772775604349,0.54561584,2063.0,2062.0,0.5929332]
[1772775604551,0.54561584,2063.0,2062.2,0.5929332]
[1772775604946,0.00379451,2063.0,2062.2,0.5929332]
[1772775605949,0.54561584,2063.0,2062.2,0.5929332]
[1772775606155,0.00379451,2063.0,2062.2,0.5929332]
[1772775607651,0.54561584,2063.0,2062.2,0.5929332]
[1772775608549,0.00379451,2063.0,2062.2,0.5929332]
[1772775610452,0.54182133,2063.4,2062.2,0.5929332]
[1772775610954,0.54182133,2063.8,2062.4,0.5929332]
[1772775611253,0.54182133,2063.6,2062.4,0.5929332]
[1772775611454,0.54703748,2063.6,2062.4,0.5929332]
[1772775613055,0.54703748,2063.6,2062.6,0.5929332]
[1772775613252,0.54703748,2063.6,2062.6,0.59665618]
[1772775614359,0.54182133,2063.5,2062.6,0.59665618]
[1772775614555,0.54182133,2063.5,2062.6,0.00372298]
[1772775614751,0.54182133,2063.3,2062.6,0.59665618]
[1772775616957,0.54182133,2063.3,2062.6,0.00372298]
[1772775617858,0.54182133,2063.3,2062.6,0.59665618]
[1772775619757,0.54182133,2063.1,2062.6,0.00372298]
[1772775619961,0.54182133,2063.1,2062.6,0.59665618]
[1772775620264,0.54182133,2063.1,2062.6,0.00372298]
[1772775620662,0.54182133,2063.5,2062.6,0.59665618]
[1772775621961,0.54182133,2063.1,2062.6,0.00372298]
[1772775623363,0.54182133,2063.1,2062.3,0.5929332]
[1772775623557,0.54182133,2062.9,2062.3,0.5929332]
[1772775624363,0.54182133,2062.9,2062.3,0.59680202]
[1772775627357,0.54182133,2062.7,2062.3,0.00386882]
[1772775627959,0.54182133,2062.7,2061.9,0.5929332]
[1772775628263,0.54182133,2062.7,2061.9,7.2659332]
[1772775628969,0.54182133,2062.7,2061.9,7.26971765]
[1772775629366,0.54182133,2062.7,2062.0,0.5929332]
[1772775630062,6.24176206,2063.3,2062.0,0.5929332]
[1772775630063,0.53739068,2063.2,2062.0,0.5929332]
[1772775630262,0.53739068,2063.1,2062.0,0.5929332]
[1772775630663,0.53739068,2062.9,2062.0,0.5929332]
[1772775631565,0.53739068,2062.7,2062.0,0.5929332]
[1772775631760,0.53739068,2062.7,2062.1,0.55865257]
[1772775633765,0.24237,2062.8,2062.0,6.668]
[1772775633766,0.53739068,2062.5,2062.0,6.668]
[1772775633965,0.53739068,2062.1,2061.6,7.22365257]
[1772775634161,0.53739068,2062.1,2061.4,7.22365257]
[1772775634362,0.53739068,2062.1,2061.5,0.55865257]
[1772775634570,0.24244,2062.2,2061.5,0.55865257]
[1772775634864,0.53739068,2062.3,2061.5,0.55865257]
[1772775635064,0.54285427,2062.3,2061.5,0.56238731]
[1772775636868,0.53739068,2061.9,2061.5,0.00373474]
[1772775637067,0.53739068,2061.9,2061.3,0.55865257]
[1772775637068,0.53739068,2061.7,2061.1,7.22265257]
[1772775637473,0.53739068,2061.7,2061.2,0.55865257]
[1772775638167,0.53739068,2061.7,2061.2,0.56426097]
[1772775638570,0.53739068,2061.7,2061.2,0.0056084]
[1772775639074,0.53739068,2061.7,2061.0,0.55865257]
[1772775639873,0.53739068,2061.7,2061.0,0.56317368]
[1772775640269,0.53739068,2061.7,2061.2,0.55865257]
[1772775640868,0.53739068,2062.2,2061.3,0.55865257]
[1772775642175,0.00546359,2062.3,2061.3,0.55865257]
[1772775642976,0.54285427,2062.3,2061.3,0.55865257]
[1772775643477,0.00546359,2062.3,2061.3,0.55865257]
[1772775645274,0.53739068,2063.1,2061.4,0.55865257]
[1772775645475,0.53739068,2063.1,2062.2,0.55865257]
[1772775645677,0.53739068,2062.8,2061.8,0.55865257]
[1772775645872,0.53739068,2062.4,2061.6,0.55865257]
[1772775646381,0.54172256,2062.4,2061.6,0.55865257]
[1772775647478,0.00433188,2062.4,2061.6,0.55865257]
[1772775648180,0.54172256,2062.4,2061.6,0.55865257]
[1772775648370,0.54172256,2062.4,2061.6,7.20765257]
[1772775648572,0.54172256,2062.4,2061.7,0.55865257]
[1772775649276,0.00433188,2062.4,2061.7,0.55865257]
[1772775649677,0.54172256,2062.4,2061.7,0.55865257]
[1772775650475,0.53739068,2062.8,2061.7,0.55865257]
[1772775651485,0.54185377,2062.8,2061.7,0.55865257]
[1772775652880,0.54185377,2062.8,2061.9,0.55865257]
[1772775653086,0.54075377,2062.8,2061.9,0.55865257]
[1772775655289,0.54075377,2062.8,2061.1,0.55865257]
[1772775655290,0.53739068,2062.3,2061.1,0.55865257]
[1772775655488,0.53739068,2061.8,2061.0,0.00452111]
[1772775655685,0.53739068,2061.8,2061.0,0.56317368]
[1772775656490,4.01534714,2062.2,2061.0,0.00452111]
[1772775656491,0.53739068,2061.6,2061.0,0.00452111]
[1772775656681,0.53739068,2061.4,2061.0,0.00452111]
[1772775656886,0.53739068,2061.4,2060.6,7.20265257]
[1772775657081,6.27297913,2062.0,2060.3,7.20365257]
[1772775657082,0.53739068,2061.2,2060.3,7.20365257]
[1772775657588,0.53739068,2061.0,2060.4,0.55865257]
[1772775657788,0.54174548,2061.0,2060.4,0.56270592]
[1772775659892,0.54174548,2061.0,2060.4,0.5422129]
[1772775660593,0.54174548,2061.0,2060.4,0.00405335]
[1772775660791,0.59588998,2060.8,2060.0,7.18715955]
[1772775660986,0.59588998,2060.8,2060.1,0.53815955]
[1772775661293,0.60024478,2061.0,2060.1,0.53815955]
[1772775661891,0.0043548,2061.0,2060.1,0.54259224]
[1772775662292,0.59588998,2061.4,2060.1,0.54259224]
[1772775662593,0.59588998,2062.0,2060.2,0.53815955]
[1772775662790,0.59588998,2062.0,2060.3,0.53815955]
[1772775662989,0.59588998,2062.0,2060.4,0.53815955]
[1772775663284,0.60112545,2062.0,2060.6,0.53815955]
[1772775663482,0.60112545,2062.0,2060.8,0.53815955]
[1772775665685,0.60112545,2062.0,2061.0,0.53815955]
[1772775665891,0.60112545,2062.0,2061.1,0.53815955]
[1772775666492,0.59588998,2061.8,2061.1,0.53815955]
[1772775666696,0.59588998,2061.4,2060.7,7.19115955]
[1772775666892,0.59588998,2061.4,2060.6,6.653]
[1772775667096,0.59588998,2061.2,2060.5,7.19015955]
[1772775667292,0.59588998,2061.2,2060.6,0.53815955]
[1772775667689,0.59588998,2061.2,2060.4,7.19015955]
[1772775667996,0.59588998,2061.2,2060.5,0.53815955]
[1772775668194,0.59588998,2061.2,2060.4,6.652]
[1772775668396,0.59588998,2061.2,2060.5,0.53815955]
[1772775668996,0.59588998,2061.2,2060.4,0.53815955]
[1772775669202,0.59588998,2061.0,2060.1,0.00443269]
[1772775669402,0.59588998,2060.8,2060.1,0.00443269]
[1772775669796,0.59588998,2060.8,2060.1,0.54259224]
[1772775670494,0.59588998,2060.8,2060.1,0.00443269]
[1772775671005,0.59588998,2060.8,2060.1,0.54259224]
[1772775672200,0.83848998,2060.9,2060.1,0.54259224]
[1772775672408,0.59588998,2061.5,2060.1,0.54259224]
[1772775672997,0.59588998,2061.3,2060.1,0.54259224]
[1772775673497,0.59588998,2061.3,2060.3,0.53815955]
[1772775674401,4.01534714,2061.8,2060.1,7.18259224]
[1772775674402,0.59588998,2060.9,2060.1,7.18259224]
[1772775674706,0.59588998,2060.9,2060.1,6.64443269]
[1772775675604,0.59588998,2060.7,2060.1,0.00443269]
[1772775675902,0.59588998,2060.3,2059.3,0.53815955]
[1772775676106,0.59588998,2060.3,2059.4,0.53815955]
[1772775676307,0.59588998,2060.8,2059.4,0.53815955]
[1772775676498,0.59588998,2060.6,2059.4,0.53815955]
[1772775676909,0.60212231,2060.6,2059.4,0.5441582]
[1772775677707,0.59588998,2060.4,2059.4,0.5441582]
[1772775677901,0.00623233,2060.6,2059.4,0.5441582]
[1772775678604,0.60212231,2060.6,2059.4,0.5441582]
[1772775679002,0.59588998,2060.5,2059.4,0.5441582]
[1772775680812,0.59588998,2060.3,2059.4,0.5441582]
[1772775682707,0.59588998,2060.5,2059.4,0.5441582]
[1772775684110,0.00623233,2060.6,2059.4,0.5441582]
[1772775684406,0.59588998,2061.0,2059.4,0.5441582]
[1772775684705,0.59588998,2061.0,2059.6,0.53815955]
[1772775685203,0.59942673,2061.0,2059.8,0.53815955]
[1772775687401,0.59942673,2061.0,2060.0,0.53815955]
[1772775687707,0.59942673,2061.0,2060.1,0.53815955]
[1772775688107,0.59942673,2061.0,2060.0,6.646]
[1772775688409,0.59588998,2060.8,2059.6,0.53815955]
[1772775689000,0.2426,2060.9,2059.4,0.00599865]
[1772775689001,0.59588998,2060.6,2059.4,0.00599865]
[1772775689207,0.59588998,2060.4,2059.4,0.00599865]
[1772775689408,0.59588998,2060.4,2059.5,0.53815955]
[1772775689602,0.59588998,2060.4,2059.4,0.00599865]
[1772775690002,0.59588998,2060.4,2059.4,0.58616339]
[1772775690413,0.59588998,2060.4,2059.4,7.23516339]
[1772775690707,0.59588998,2060.4,2059.4,0.00599865]
[1772775691211,0.59588998,2060.4,2059.4,0.58616339]
[1772775692914,0.59588998,2060.4,2059.6,0.58016474]
[1772775694917,0.59588998,2060.4,2059.4,0.58616339]
[1772775698618,0.55966521,2060.2,2059.4,0.00599865]
[1772775698821,0.55966521,2060.2,2059.4,0.58616339]
[1772775701021,0.55966521,2060.7,2059.4,0.58616339]
[1772775701220,0.55966521,2060.5,2059.4,0.58616339]
[1772775702819,0.55966521,2060.5,2059.6,0.58016474]
[1772775703420,0.55966521,2060.5,2059.8,0.58016474]
[1772775703818,0.55966521,2060.5,2059.7,7.22116474]
[1772775704118,0.55966521,2060.9,2059.8,0.58016474]
[1772775704725,0.55966521,2060.9,2059.9,7.21816474]
[1772775705118,0.00353675,2061.0,2059.9,0.58016474]
[1772775705119,0.55966521,2060.7,2059.9,0.58016474]
[1772775705923,0.55966521,2060.9,2059.9,0.58016474]
[1772775706329,0.55966521,2060.9,2060.1,0.58016474]
[1772775707225,0.56320196,2061.0,2060.1,0.58016474]
[1772775707631,0.00353675,2061.0,2060.1,0.58016474]
[1772775708232,0.56320196,2061.0,2060.1,0.58016474]
[1772775708926,0.55966521,2061.4,2060.1,0.58016474]
[1772775709131,0.55966521,2061.4,2060.2,0.58016474]
[1772775709633,0.55966521,2061.4,2060.4,0.58016474]
[1772775710030,0.56329699,2061.4,2060.4,0.58016474]
[1772775713128,0.00363178,2061.4,2060.4,0.58016474]
[1772775713735,0.56329699,2061.4,2060.6,0.58016474]
[1772775715640,0.00363178,2061.4,2060.6,0.58016474]
[1772775715844,0.56329699,2061.4,2060.6,0.58016474]
[1772775718441,0.55966521,2061.9,2060.7,0.58016474]
[1772775718641,0.55966521,2061.9,2060.9,0.58016474]
[1772775719443,0.56352043,2061.9,2060.9,0.58463351]
[1772775720538,0.5649488,2061.8,2060.9,0.58463351]
[1772775720840,0.5649488,2061.4,2060.9,0.00446877]
[1772775721632,0.00385522,2061.9,2060.9,0.55929838]
[1772775721838,0.56880402,2061.9,2060.9,0.55929838]
[1772775725342,0.5649488,2061.7,2060.9,7.17629838]
[1772775725939,0.5649488,2061.7,2061.0,0.55482961]
[1772775726444,0.5649488,2061.7,2060.9,6.62146877]
[1772775726745,0.24251,2061.6,2060.9,6.62146877]
[1772775726946,0.5649488,2061.3,2060.9,0.00446877]
[1772775727142,0.5649488,2061.3,2060.4,7.17082961]
[1772775727947,0.5649488,2061.1,2060.4,0.55482961]
[1772775728143,0.5649488,2061.1,2060.4,0.56051559]
[1772775728741,0.8075088,2061.2,2060.4,0.56051559]
[1772775729548,0.5649488,2061.1,2060.4,0.56051559]
[1772775729748,0.5649488,2061.1,2060.4,7.17651559]
[1772775730851,0.5649488,2061.1,2060.4,0.56051559]
[1772775731052,0.5649488,2061.1,2060.4,7.17651559]
[1772775731651,0.5649488,2060.9,2060.4,6.62168598]
[1772775731853,0.5649488,2060.9,2060.4,0.00568598]
[1772775732453,0.5649488,2060.9,2060.4,0.56051559]
[1772775732652,0.5649488,2061.1,2060.4,0.56051559]
[1772775733255,0.5649488,2061.5,2060.4,0.56051559]
[1772775734854,0.5649488,2061.5,2060.5,0.55482961]
[1772775735954,0.5649488,2061.5,2060.6,7.17082961]
[1772775736458,0.8074888,2061.4,2060.7,0.55482961]
[1772775736958,0.5649488,2061.3,2060.6,7.17082961]
[1772775737459,0.5649488,2061.3,2060.7,0.55482961]
[1772775737655,0.5649488,2061.1,2060.6,6.616]
[1772775737856,0.5649488,2061.1,2060.6,6.37737922]
[1772775740054,0.5649488,2060.7,2060.0,8.16594362]
[1772775740256,0.5649488,2060.5,2059.9,6.615]
[1772775740759,0.5649488,2060.5,2059.9,7.16982961]
[1772775740960,0.5649488,2060.5,2060.0,0.55482961]
[1772775741160,0.5649488,2060.5,2060.0,0.55924703]
[1772775741762,0.5649488,2061.1,2060.0,0.55924703]
[1772775742659,0.5649488,2060.9,2060.0,0.55924703]
[1772775742856,0.5649488,2060.5,2060.0,6.62141742]
[1772775743562,0.5649488,2060.5,2060.0,7.17624703]
[1772775743767,0.5649488,2060.5,2060.0,6.62141742]
[1772775744259,0.5649488,2060.3,2060.0,0.00441742]
[1772775744462,0.5649488,2059.9,2059.4,7.17382961]
[1772775744757,0.5649488,2060.9,2059.8,0.55482961]
[1772775744956,0.5649488,2060.9,2059.4,16.68591247]
[1772775744957,0.5649488,2060.9,2060.0,0.55482961]
[1772775745154,0.5649488,2060.9,2060.0,7.17582961]
[1772775745355,0.5649488,2060.9,2060.0,7.17932516]
[1772775745356,0.56914689,2060.9,2060.0,7.17932516]
[1772775745554,0.5649488,2060.7,2060.0,7.17932516]
[1772775746257,0.5649488,2060.7,2060.0,6.62449555]
[1772775746465,0.5649488,2060.5,2060.0,6.62449555]
[1772775747063,0.5649488,2060.5,2060.0,0.00349555]
[1772775747264,0.5649488,2060.5,2060.0,0.00058092]
[1772775747669,0.5649488,2060.3,2060.0,0.00058092]
[1772775748272,0.5649488,2060.6,2060.0,0.55541053]
[1772775753173,0.24264,2060.5,2060.0,0.55541053]
[1772775753377,0.57558118,2060.4,2060.0,6.63658092]
[1772775754077,0.57558118,2060.4,2060.0,0.00058092]
[1772775754476,0.57558118,2060.2,2059.6,7.23204665]
[1772775755778,0.57558118,2060.0,2059.6,7.23698138]
[1772775756175,0.57558118,2060.0,2059.6,6.64293473]
[1772775756379,0.57558118,2059.8,2059.2,0.59404665]
[1772775757580,0.57558118,2059.8,2059.2,0.59988975]
[1772775758280,0.24271,2059.9,2059.2,0.59988975]
[1772775758682,0.81829118,2059.9,2059.2,0.59988975]
[1772775758884,0.57558118,2060.5,2059.2,0.59988975]
[1772775759082,0.57558118,2060.3,2059.2,0.59988975]
[1772775759985,0.57558118,2060.1,2059.2,0.59988975]
[1772775760674,0.57558118,2060.1,2059.4,0.59404665]
[1772775761079,0.24268,2060.2,2059.4,0.59404665]
[1772775761276,0.81826118,2060.2,2059.4,0.59404665]
[1772775761680,0.57558118,2060.1,2059.4,0.59404665]
[1772775762082,0.24268,2060.2,2059.4,0.59404665]
[1772775762476,0.81826118,2060.2,2059.4,0.59404665]
[1772775762675,0.57558118,2060.1,2059.4,0.59404665]
[1772775762982,0.81826118,2060.2,2059.4,0.59404665]
[1772775763583,0.24268,2060.2,2059.4,0.59404665]
[1772775763779,0.57558118,2060.4,2059.4,0.59404665]
[1772775763981,0.57558118,2060.6,2059.4,0.59404665]
[1772775766280,0.57558118,2060.6,2059.5,0.59404665]
[1772775768290,0.57558118,2060.6,2059.6,0.59404665]
[1772775769288,0.57558118,2060.6,2059.7,0.59404665]
[1772775769490,0.57558118,2060.6,2059.9,0.59404665]
[1772775770191,0.24262,2060.7,2059.9,0.59404665]
[1772775771084,0.00419809,2060.9,2059.9,0.59404665]
[1772775771292,0.00419809,2060.9,2060.0,0.59404665]
[1772775771487,0.00419809,2060.9,2060.3,0.59404665]
[1772775771686,0.57558118,2061.2,2060.5,0.59404665]
[1772775772281,0.57558118,2060.8,2060.1,6.655]
[1772775772489,0.57558118,2060.8,2060.1,7.25004665]
[1772775772790,0.57919692,2060.8,2060.2,0.59404665]
[1772775772993,0.00361574,2060.8,2060.2,0.59404665]
[1772775774391,0.57919692,2060.8,2060.2,0.59404665]
[1772775774886,0.00361574,2060.8,2060.2,0.59404665]
[1772775776393,0.57558118,2061.0,2060.2,0.59404665]
[1772775777589,0.58026727,2061.0,2060.2,0.59404665]
[1772775777793,0.00468609,2061.0,2060.2,0.59404665]
[1772775777993,0.58026727,2061.0,2060.2,0.59404665]
[1772775780195,0.00468609,2061.0,2060.2,0.59404665]
[1772775782198,0.59563736,2061.3,2060.2,0.59404665]
[1772775782398,0.59563736,2061.5,2060.4,0.55618395]
[1772775782593,0.59563736,2061.5,2060.5,0.55618395]
[1772775782793,0.59563736,2061.8,2060.7,0.55618395]
[1772775783095,6.349,2062.7,2060.9,0.55618395]
[1772775783096,0.59563736,2062.0,2060.9,0.55618395]
[1772775783397,0.59997222,2062.0,2060.9,0.56132406]
[1772775783996,0.59997222,2062.0,2061.0,0.55618395]
[1772775784190,0.59997222,2062.0,2061.2,0.55618395]
[1772775785897,0.00433486,2062.0,2061.2,0.55618395]
[1772775787397,0.59997222,2062.0,2061.2,0.55618395]
[1772775788493,0.00433486,2062.0,2061.2,0.55618395]
[1772775789501,0.59563736,2062.3,2061.2,0.55618395]
[1772775790601,0.6011578,2062.3,2061.2,0.55618395]
[1772775795805,0.59563736,2062.1,2061.1,6.668]
[1772775796103,0.59563736,2061.9,2061.0,0.55618395]
[1772775800705,0.59563736,2061.7,2060.9,0.00514011]
[1772775803306,0.59563736,2061.5,2060.9,0.00514011]
[1772775805708,0.59563736,2061.5,2060.9,0.56132406]
[1772775811515,0.59485368,2061.3,2060.9,0.00514011]
[1772775811713,0.59485368,2061.1,2060.5,7.25253914]
[1772775812614,0.59485368,2061.1,2060.6,0.58553914]
[1772775815217,0.59485368,2061.6,2060.6,0.58553914]
[1772775819317,0.59485368,2061.6,2060.8,0.58553914]
[1772775821520,0.59485368,2061.4,2060.8,0.58553914]
[1772775822220,0.59485368,2061.4,2060.6,0.58553914]